Cogmind - Beta 10.2 @@@ ROGUE MODE // 2021.08.10 @ 09:54:35 Player: Demise Result: Destroyed by G-34 Mercenary with Small Laser Performance ------------- Evolutions (0) 0 Regions Visited (1) 200 Robots Destroyed (8) 40 Value Destroyed (155) 155 Prototype IDs (0) 0 Alien Tech Used (0) 0 Bonus (0) 0 TOTAL SCORE: 395 Bonus ------- None Cogmind --------- Core Integrity 0/250 Matter 97/300 Energy 100/100 System Corruption 0% Temperature Cool (12) Movement Core (50) Location -10/Materials Parts ------- > --- POWER (1) -------- (None) > --- PROPULSION (2) --- (None) > --- UTILITY (2) ------ (None) > --- WEAPON (2) ------- (None) > --- INVENTORY (4) ---- Large Storage Unit Signal Interpreter Small Laser Mining Laser Peak State ------------ > --- POWER ------------ Light Ion Engine > --- PROPULSION ------- Aluminum Leg Aluminum Leg > --- UTILITY ---------- Large Storage Unit Weapon Shielding > --- WEAPON ----------- Assault Rifle Light Assault Rifle > --- INVENTORY -------- Ion Engine Aluminum Leg Small Laser Mining Laser [Rating: 7] Favorites ----------- Power Light Ion Engine Engine Light Ion Engine Propulsion Aluminum Leg Leg Aluminum Leg Utility Weapon Shielding Storage Large Storage Unit Protection Weapon Shielding Weapon Assault Rifle Energy Gun Medium Laser Ballistic Gun Assault Rifle Build | -11 -10 ------- Run | Scr Mat Slots Evolved . | . . Power . | . . Propulsion . | . . Utility . | . . Weapon . | . . Parts Attached 18 | 6 12 Power 3 | 2 1 Engine 3 | 2 1 Core . | . . Reactor . | . . Propulsion 5 | 2 3 Treads . | . . Leg 5 | 2 3 Wheel . | . . Hover . | . . Flight . | . . Utility 2 | . 2 Device . | . . Storage 1 | . 1 Processor . | . . Hackware . | . . Protection 1 | . 1 Artifact . | . . Weapon 8 | 2 6 Energy Gun 1 | . 1 Energy Cannon . | . . Ballistic Gun 7 | 2 5 Ballistic Cannon . | . . Launcher . | . . Special Weapon . | . . Impact Weapon . | . . Slashing Weapon . | . . Piercing Weapon . | . . Special Melee Weapon . | . . Unidentified Prototypes . | . . Parts Lost 3 | . 3 Power . | . . Propulsion 2 | . 2 Utility . | . . Weapon 1 | . 1 Highest Loss Streak 3 | . 3 Average Slot Usage (%) 83 | . 83 Engine 13 | . 13 Leg 24 | . 24 Storage 8 | . 8 Protection 9 | . 9 Ballistic Gun 24 | . 24 Naked Turns 12 | . 12 Heaviest Build 24 | 6 24 Greatest Support 20 | 20 20 Greatest Overweight (x) 2 | . 2 Average Overweight (x) . | . . Largest Inventory Capacity 10 | 4 10 Average Capacity 7 | 4 7 Most Carried 7 | 3 7 Average Carried 4 | 1 4 Final Capacity 4 | 4 4 Final Carried 4 | 3 4 Class Distribution -------------------- 100% | Mutant Dominant Class ---------------- Mutant | -10/Materials Resources | -11 -10 ----------- Run | Scr Mat Matter Collected 325 | 230 95 Remotely . | . . Salvage Created 181 | 19 162 Parts 20 | 6 14 Haulers Intercepted . | . . Recyclers Shooed 1 | . 1 Parts Field Recycled . | . . Retrieved Matter . | . . Parts Self-Destructed . | . . Prevented . | . . Kills | -11 -10 ------- Run | Scr Mat Combat Hostiles Destroyed 6 | . 6 Guns 6 | . 6 Classes Destroyed 4 | 1 3 Tunneler 1 | 1 . Watcher 1 | . 1 Swarmer 3 | . 3 Grunt 3 | . 3 Best Kill Streak 3 | 1 3 Combat Bots Only 3 | . 3 Max Kills in Single Turn 2 | 1 2 Gunslinging 1 | . 1 Exploded . | . . Melee . | . . Uniques/NPCs Destroyed . | . . Combat | -11 -10 -------- Run | Scr Mat Damage Taken 599 | . 599 Core 254 | . 254 Absorbed by Shields . | . . Core Remaining (%) 100 | 100 . Volleys Fired 44 | 7 37 Largest 2 | 2 2 Hottest 70 | 40 70 Shots Fired 80 | 14 66 Gun 80 | 14 66 Cannon . | . . Launcher . | . . Special . | . . Kinetic 77 | 14 63 Thermal 3 | . 3 Explosive . | . . Electromagnetic . | . . Robot Hit Streak 18 | 3 18 Robot Miss Streak 6 | 2 6 Penetration Max . | . . Secondary Targets 2 | . 2 Max Gunslinging Chain 1 | . 1 Shots Hit Robots 57 | 8 49 Core Hits 14 | 2 12 Critical Hits . | . . Critical Kills . | . . Critical Parts Destroyed . | . . Melee Attacks . | . . Impact . | . . Slashing . | . . Piercing . | . . Sneak Attacks . | . . Combat Hostiles . | . . Follow-up Attacks . | . . Damage Inflicted 566 | 58 508 Guns 566 | 58 508 Cannons . | . . Explosions . | . . Melee . | . . Ramming . | . . Kinetic 540 | 58 482 Thermal 26 | . 26 Explosive . | . . Electromagnetic . | . . Impact . | . . Slashing . | . . Piercing . | . . Highest Corruption . | . . Average Corruption . | . . Corruption Purged . | . . Overload Shots . | . . Overflow Damage . | . . Projectiles . | . . Explosions . | . . Melee . | . . Knockbacks . | . . Impact . | . . Kinetic . | . . Secondary . | . . Self-Inflicted Damage . | . . Shots . | . . Rammed . | . . Targets Rammed . | . . Kicked . | . . Crushed . | . . Highest Temperature 22 | . 22 Average Temperature 9 | . 9 Received Heat Transfer 291 | . 291 Siege Activations . | . . Robots Corrupted . | . . Combat Hostiles . | . . Parts Fried . | . . Impact Corruptions . | . . Robots Melted . | . . Combat Hostiles . | . . Parts Melted . | . . Heat Transferred 74 | . 74 Parts Sabotaged . | . . Parts Stolen . | . . Parts Stripped . | . . Power Chain Reactions . | . . Missiles Intercepted . | . . Alert | -11 -10 ------- Run | Scr Mat Peak Influence 230 | 5 230 Initial 3 | . 3 Average 112 | . 135 Maximum Alert Level 1 | . 1 Low Security (%) 88 | 100 85 Level 1 11 | . 14 Level 2 . | . . Level 3 . | . . Level 4 . | . . Level 5 . | . . High Security . | . . Max Security . | . . Squads Dispatched 2 | . 2 Investigation 1 | . 1 Extermination . | . . Reinforcement 1 | . 1 Assault . | . . Garrison . | . . Intercept . | . . Construction Impeded . | . . Haulers Reinforced . | . . Stealth | -11 -10 --------- Run | Scr Mat Distress Signals 2 | . 2 Communications Jammed . | . . Distress Signals . | . . Times Spotted 19 | . 19 Peak Tracking Total 5 | . 5 Tactical Retreats 2 | . 2 Traps | -11 -10 ------- Run | Scr Mat Traps Triggered 4 | . 4 Indirectly . | . . Trap Hack Attempts . | . . Triggered . | . . Disarmed . | . . Reprogrammed . | . . Reused . | . . Traps Extracted . | . . Installed . | . . Triggered . | . . Machines | -11 -10 ---------- Run | Scr Mat Machines Disabled . | . . Max in Single Turn . | . . Machines Sabotaged . | . . Garrisons Compromised . | . . Overloaded Fab Kills . | . . Fab Network Shutdowns . | . . Hacking | -11 -10 --------- Run | Scr Mat Machines Accessed 2 | . 2 Terminals . | . . Fabricators . | . . Repair Stations 1 | . 1 Recycling Units 1 | . 1 Scanalyzers . | . . Garrison Access . | . . Total Hacks 5 | . 5 Successful 3 | . 3 Failed 2 | . 2 Catastrophic . | . . Database Lockouts . | . . Manual . | . . Terminals . | . . Fabricators . | . . Repair Stations 3 | . 3 Recycling Units 2 | . 2 Scanalyzers . | . . Garrison Access . | . . Terminal Hacks . | . . Fabricator Hacks . | . . Repair Station Hacks 2 | . 2 Scan Component 1 | . 1 Repair 1 | . 1 Recycling Unit Hacks 1 | . 1 Retrieve Components 1 | . 1 Scanalyzer . | . . Garrison Access Hacks . | . . Unauthorized Hacks . | . . Terminals . | . . Fabricators . | . . Repair Stations . | . . Recycling Units . | . . Scanalyzers . | . . Garrison Access . | . . Data Cores Recovered . | . . Used . | . . Hacking Detections 2 | . 2 Full Trace Events 1 | . 1 Feedback Events . | . . Feedback Blocked . | . . Robot Schematics Acquired . | . . Robots Built . | . . Matter . | . . Time . | . . Total Robot Build Rating . | . . Part Schematics Acquired . | . . Parts Built . | . . Matter . | . . Time . | . . Total Part Build Rating . | . . Parts Repaired 1 | . 1 Time 26 | . 26 Parts Recycled . | . . Recycled Matter . | . . Retrieved Matter . | . . Retrieved Components 3 | . 3 Parts Scanalyzed . | . . Part Schematics Acquired . | . . Parts Damaged . | . . Bothacking | -11 -10 ------------ Run | Scr Mat Used RIF Installer . | . . Robots Hacked . | . . Non-combat . | . . Combat . | . . Robot Hacks Applied . | . . Relay Couplers Released . | . . Robots Rewired . | . . Allies Hacked . | . . Hacks Repelled . | . . Allies | -11 -10 -------- Run | Scr Mat Total Allies . | . . Largest Group . | . . Highest-Rated Group . | . . Highest-Rated Ally . | . . Total Orders . | . . Ally Attacks . | . . Total Damage . | . . Kills . | . . Allies Corrupted . | . . Allies Melted . | . . Intel | -11 -10 ------- Run | Scr Mat Robot Analysis Total . | . . Derelict Logs Recovered . | . . Drone Launches . | . . Drone Recoveries . | . . Exploration | -11 -10 ------------- Run | Scr Mat Turns Passed 438 | 75 363 Spaces Moved 200 | 41 159 Core 18 | 6 12 Treads . | . . Legs 182 | 35 147 Wheels . | . . Hover . | . . Flight . | . . Fastest Speed 50 | 50 50 Average Speed 124 | 109 128 Slowest Speed 180 | 120 180 Overloaded Moves . | . . Propulsion Burnouts . | . . Robots Hopped . | . . Cave-ins Triggered . | . . Exploration Rate (%) 16 | 4 29 Regions Visited 1 Branch Regions . Pre-discovered Areas . | . . Known Exits Taken . | . . Unknown Exits Taken 1 | 1 . Scrap Searched . | . . Spaces Dug . | . . Terrain Destroyed . | . . Melee . | . . Projectile . | . . AOE . | . . Terrain Rammed . | . . Walls Destroyed . | . . Machines Disabled . | . . Actions | -11 -10 --------- Run | Scr Mat Total 310 | 56 254 Wait 39 | . 39 Move 199 | 40 159 Hop . | . . Pick Up 8 | 2 6 Fast Attach 16 | 6 10 Attach 2 | . 2 Detach 1 | 1 . Swap . | . . Drop 1 | . 1 Fire 44 | 7 37 Melee . | . . Ram . | . . Kick . | . . Crush . | . . Escape Stasis . | . . Rewire . | . . Trap . | . . Miscellaneous . | . . Route ------- -11/Scrapyard -10/Materials (discovered 1 exit: [*Min]) History --------- Turn | Location | Event 3 | -11/Scrapyard | Discovered new exit (range 16) 76 | -11/Scrapyard | Entered Materials 153 | -10/Materials | Discovered new exit (range 15) 303 | -10/Materials | Build established: Mutant 336 | -10/Materials | Repaired Aluminum Leg 427 | -10/Materials | Released all parts (6) 428 | -10/Materials | Lost 3 parts (2n1w) 430 | -10/Materials | Core integrity fell below 50% 437 | -10/Materials | Core integrity fell below 20% 439 | -10/Materials | Destroyed by G-34 Mercenary with Small Laser Last Messages --------------- 00396_ G-34 Mercenary destroyed. 00396_ Switching to secondary target: G-34 Mercenary. 00397_ Lgt. Assault Rifle destroyed. 00405_ R-06 Scavenger collects Heat Sink. 00409_ K-01 Serf collects debris. 00415_ G-34 Mercenary destroyed. 00415_ R-06 Scavenger collects Ion Engine. 00415_ K-01 Serf collects debris. 00418_ R-06 Scavenger collects Heat Sink. 00418_ K-01 Serf collects debris. 00420_ W-16 Scout sends out distress signal. 00422_ K-01 Serf collects debris. 00427_ Released Med. Laser. 00427_ Released Aluminum Leg. 00427_ Released Lgt. Ion Engine. 00427_ Released Assault Rifle. 00427_ Released Weapon Shielding. 00427_ Released Lrg. Storage Unit. 00427_ R-06 Scavenger collects Lgt. Ion Engine. 00430_ R-06 Scavenger collects Med. Laser. Map ----- +----------------------------------------------------+ | ???# #??? ?# * #?????????????????? | | ???# #???# #?# = #?????????????????? | | ####+## #???# #?# """ #?????????????????? | | # # #???# #?# """ #?????????????????? | | # ""# #???# #?# """ =#?????????????????? | | # * Y"# #??## ### #?????????????????? | | # ""# #### ##+########?????????????????? | | # # ^ #??????????????????????? | | # / #??????????????????????? | | # """ # | #??????????????????????? | | # """ ## ### ## #??????????????????????? | | # """ ##/#####/#### #??????????????????????? | | # # % # !*+??????????????????????? | | # # % + [ #??????????????????????? | | # # #=! #??????????????????????? | | ####### # ####???????????????????? | | ??????# # # ???????????????????? | | ??????# # + ?????????????????????? | | ??????# # #??????????????????????? | | ??############+#### ##?????????????????????? | | ??# ## ### #?????????????????????? | | ??# # #?????????????????????? | | ??# + #?????????????????????? | | ??# # g #?????????????????????? | | ??# """ """ # """ #?????????????????????? | | ??? """ """?# """ @g#?????????????????????? | | ????""" """?# """ g#?????????????????????? | | ????? ??# ######+## ??????????? | | ???????###??# ?????????? | | ????????????# ### ?????????? | | ????????????# #?# ?????????? | | ??????????? ### ########### ??????????? | | ?????????? # #????????????????????????? | | ???????? # #????????????????????????? | | ???????##+####+## #????????????????????????? | | ????????????????# #????????????????????????? | | ????????????????# #????????????????????????? | | ????????????????# #????????????????????????? | | ????????????????# #????????????????????????? | | ???????########## #????????????????????????? | | ???????# # #????????????????????????? | | ???????# """ # #????????????????????????? | | ???????# """ #| #????????????????????????? | | ???????# """ # #????????????????????????? | | ???????# + #????????????????????????? | | ???????# """ # #????????????????????????? | | ???????# """ =# #????????????????????????? | | ???????# """ # #????????????????????????? | | ???????# # #????????????????????????? | | ???????########## #????????????????????????? | +----------------------------------------------------+ Best States ------------- Heat Dissipation 25 Energy Generation 10 Energy Capacity 125 Matter Stores 258 Matter Capacity 300 Sight Range 16 Terrain Scan Density 10 Weapon Shielding 33 Evasion (%) 50 Item Schematics ----------------- None Robot Schematics ------------------ None Fabricated ------------ Nothing Alien Tech Used ----------------- None Achievements -------------- None Challenges ------------ None Game ------ Seed HardcellSurveybotInverter Manual? 0 Play Time 00:05:47 Cumulative 456.5 hours Start 2021.08.10 @ 09:51:04 End 2021.08.10 @ 09:54:35 Sessions 1 Manual Loads 0 Difficulty Rogue Special Mode None Game No. 373 Rogue 373 Adventurer 0 Explorer 0 Win Type - Total 2 Types 1/0/0/1/0/0/0/0/0 Lore% 72 Gallery% 82 Achievement% 63 Wizard Run 0 Options --------- ASCII 0 Keyboard 1 Movement Numpad Keybinds 0 Fullscreen 1 Font 12/Terminus Map View 83x54 Tactical HUD 1 Map Filters NONE Filters NONE Steam 1 RUN: bff334ba-5401-4291-be75-4d45e4177a3a